fUSD/lending_fUSD_20250420
["ID","MTS","AMOUNT","RATE_DAILY","PERIOD"]
[358448700,1745160641535,-646.24679008,0.00054794,120]
[358448701,1745160641544,-500.0,0.00054794,120]
[358448702,1745160641553,-500.0,0.00054794,120]
[358448703,1745160641563,-500.0,0.00054794,120]
[358448704,1745160641572,-500.0,0.00054794,120]
[358448705,1745160641580,-500.0,0.00054794,7]
[358448706,1745160641589,-208.08832555,0.00054794,120]
[358448707,1745160641599,-500.0,0.00054794,120]
[358448708,1745160641608,-521.69583153,0.00054794,120]
[358448709,1745160641617,-500.0,0.00054794,120]
[358448710,1745160641626,-500.0,0.00054794,120]
[358448711,1745160641635,-500.0,0.00054794,120]
[358448712,1745160641646,-500.0,0.00054794,120]
[358448713,1745160641655,-500.0,0.00054794,120]
[358448714,1745160641664,-500.0,0.00054794,120]
[358448715,1745160641673,-500.0,0.00054794,120]
[358448716,1745160641682,-500.0,0.00054794,120]
[358448717,1745160641691,-500.0,0.00054794,120]
[358448718,1745160641700,-546.31342242,0.00054794,120]
[358448719,1745160641709,-500.0,0.00054794,120]
[358448720,1745160641718,-510.15994287,0.00054794,120]
[358448721,1745160641727,-500.0,0.00054794,120]
[358448722,1745160641736,-518.49817323,0.00054794,120]
[358448723,1745160641745,-501.36,0.00054794,120]
[358448724,1745160641754,-500.0,0.00054794,120]
[358448725,1745160641763,-511.89145136,0.00054794,120]
[358448726,1745160641773,-500.0,0.00054794,120]
[358448727,1745160641782,-500.0,0.00054794,120]
[358448728,1745160641791,-500.0,0.00054794,120]
[358448729,1745160641801,-500.0,0.00054794,120]
[358448730,1745160641810,-500.0,0.00054794,120]
[358448731,1745160641819,-500.0,0.00054794,120]
[358448732,1745160641829,-500.0,0.00054794,120]
[358448733,1745160641839,-500.0,0.00054794,120]
[358448734,1745160641848,-500.0,0.00054794,120]
[358448735,1745160641858,-548.34649435,0.00054794,120]
[358448736,1745160641867,-500.0,0.00054794,120]
[358448737,1745160641876,-500.0,0.00054794,120]
[358448738,1745160641886,-521.69436849,0.00054794,120]
[358448739,1745160641895,-537.01941578,0.00054794,120]
[358448740,1745160641904,-500.0,0.00054794,120]
[358448741,1745160641913,-500.0,0.00054794,120]
[358448742,1745160641922,-500.0,0.00054794,30]
[358448743,1745160641931,-500.0,0.00054794,120]
[358448744,1745160641941,-500.0,0.00054794,120]
[358448745,1745160641950,-500.0,0.00054794,120]
[358448746,1745160641960,-500.0,0.00054794,120]
[358448747,1745160641969,-500.0,0.00054794,120]
[358448748,1745160641978,-538.59933757,0.00054794,120]
[358448749,1745160641987,-500.0,0.00054794,120]
[358448750,1745160641996,-500.0,0.00054794,120]
[358448751,1745160642006,-500.0,0.00054794,120]
[358448752,1745160642015,-514.50818009,0.00054794,120]
[358448753,1745160642024,-500.0,0.00054794,120]
[358448754,1745160642034,-572.94440517,0.00054794,120]
[358448755,1745160642043,-500.0,0.00054794,120]
[358448756,1745160642052,-562.03,0.00054794,60]
[358448757,1745160642061,-500.0,0.00054794,120]
[358448758,1745160642070,-593.97598482,0.00054794,120]
[358448759,1745160642080,-500.0,0.00054794,120]
[358448760,1745160642089,-500.0,0.00054794,120]
[358448761,1745160642099,-500.0,0.00054794,120]
[358448762,1745160642109,-1017.05692243,0.00054794,120]
[358448763,1745160642118,-500.0,0.00054794,120]
[358448764,1745160642127,-166.83559261,0.00054794,120]
[358448765,1745160642137,-567.04923272,0.00054794,120]
[358448766,1745160642146,-500.0,0.00054794,120]
[358448767,1745160642155,-500.0,0.00054794,120]
[358448768,1745160642164,-500.0,0.00054794,120]
[358448769,1745160642173,-152.21718,0.00054794,120]
[358448770,1745160642182,-500.0,0.00054794,120]
[358448771,1745160642191,-500.0,0.00054794,120]
[358448772,1745160642201,-500.0,0.00054794,120]
[358448773,1745160642210,-525.07383524,0.00054794,120]
[358448774,1745160642220,-500.0,0.00054794,120]
[358448775,1745160642229,-594.40065543,0.00054794,120]
[358448776,1745160642239,-500.0,0.00054794,120]
[358448777,1745160642248,-500.0,0.00054794,120]
[358448778,1745160642258,-500.0,0.00054794,120]
[358448779,1745160642267,-500.0,0.00054794,120]
[358448780,1745160642276,-583.81060653,0.00054794,120]
[358448781,1745160642285,-516.16480397,0.00054794,120]
[358448782,1745160642294,-500.0,0.00054794,14]
[358448783,1745160642303,-531.36493219,0.00054794,120]
[358448784,1745160642313,-500.0,0.00054794,120]
[358448785,1745160642322,-500.0,0.00054794,120]
[358448786,1745160642331,-500.0,0.00054794,120]
[358448787,1745160642341,-500.0,0.00054794,120]
[358448788,1745160642351,-548.73505576,0.00054794,120]
[358448789,1745160642360,-500.0,0.00054794,120]
[358448790,1745160642370,-543.20667275,0.00054794,120]
[358448791,1745160642379,-547.06683611,0.00054794,120]
[358448792,1745160642388,-500.0,0.00054794,120]
[358448793,1745160642398,-500.0,0.00054794,120]
[358448794,1745160642407,-500.0,0.00054794,120]
[358448795,1745160642416,-534.54000986,0.00054794,120]
[358448796,1745160642426,-500.0,0.00054794,120]
[358448797,1745160642435,-543.10065256,0.00054794,120]
[358448799,1745160642445,-500.0,0.00054794,120]
[358448800,1745160642453,-500.0,0.00054794,120]
[358448801,1745160642462,-544.19,0.00054794,120]
[358448803,1745160642472,-500.0,0.00054794,120]
[358448804,1745160642481,-500.0,0.00054794,120]
[358448805,1745160642491,-1382.81,0.00054794,120]
[358448806,1745160642500,-500.0,0.00054794,120]
[358448807,1745160642509,-500.0,0.00054794,120]
[358448808,1745160642518,-500.0,0.00054794,120]
[358448809,1745160642528,-500.0,0.00054794,120]
[358448810,1745160642537,-500.0,0.00054794,120]
[358448811,1745160642547,-553.97,0.00054794,120]
[358448812,1745160642556,-500.0,0.00054794,120]
[358448817,1745160642566,-2000.0,0.00054794,2]
[358448818,1745160642674,-500.0,0.00054794,120]
[358448819,1745160642684,-500.0,0.00054794,120]
[358448820,1745160642694,-500.0,0.00054794,120]
[358448822,1745160642703,-500.0,0.00054794,120]
[358448824,1745160642713,-525.05653652,0.00054794,120]
[358448825,1745160642725,-500.0,0.00054794,120]
[358448826,1745160642734,-500.0,0.00054794,120]
[358448827,1745160642743,-500.0,0.00054794,120]
[358448828,1745160642753,-504.5505555,0.00054794,120]
[358448829,1745160642762,-615.34442664,0.00054794,120]
[358448830,1745160642771,-500.0,0.00054794,120]
[358448831,1745160642781,-500.0,0.00054794,120]
[358448832,1745160642790,-500.0,0.00054794,120]
[358448833,1745160642799,-552.41243419,0.00054794,120]
[358448834,1745160642809,-500.0,0.00054794,120]
[358448835,1745160642818,-500.0,0.00054794,120]
[358448836,1745160642828,-521.48209757,0.00054794,120]
[358448837,1745160642838,-500.0,0.00054794,120]
[358448838,1745160642848,-500.0,0.00054794,120]
[358448839,1745160642858,-500.0,0.00054794,120]
[358448840,1745160642868,-500.0,0.00054794,120]
[358448841,1745160642878,-500.0,0.00054794,120]
[358448842,1745160642888,-74.67661908,0.00054794,120]
[358448855,1745160643320,-353.25881327,0.00054794,120]
[358448866,1745160644554,-703.0,0.000449,2]
[358448867,1745160644564,-703.13919845,0.000504,2]
[358448868,1745160644573,-456.0,0.00050527,7]
[358448869,1745160644582,-72.06456765,0.00054794,120]
[358448870,1745160644593,-500.0,0.00054794,120]
[358448871,1745160644602,-394.25023283,0.00054794,120]
[358448872,1745160644611,-121.48294261,0.00054794,120]
[358448873,1745160644623,-378.51705739,0.00054794,120]
[358448874,1745160644633,-527.81397817,0.00054794,120]
[358448875,1745160644644,-500.0,0.00054794,120]
[358448876,1745160644654,-500.0,0.00054794,120]
[358448877,1745160644664,-500.0,0.00054794,120]
[358448878,1745160644673,-531.54190505,0.00054794,120]
[358448879,1745160644683,-500.0,0.00054794,120]
[358448880,1745160644692,-500.0,0.00054794,120]
[358448881,1745160644701,-500.0,0.00054794,120]
[358448882,1745160644711,-500.0,0.00054794,120]
[358448883,1745160644723,-500.0,0.00054794,120]
[358448884,1745160644733,-500.0,0.00054794,120]
[358448885,1745160644742,-500.0,0.00054794,120]
[358448886,1745160644751,-500.0,0.00054794,120]
[358448887,1745160644761,-11.75293933,0.00054794,120]
[358448888,1745160644774,-333.794745,0.00054794,120]
[358448889,1745160644786,-154.45231567,0.00054794,120]
[358448890,1745160644795,-500.0,0.00054794,120]
[358448891,1745160644805,-500.0,0.00054794,120]
[358448892,1745160644815,-646.7949041,0.00054794,120]
[358448893,1745160644824,-500.0,0.00054794,120]
[358448894,1745160644834,-668.8,0.00054794,120]
[358448895,1745160644844,-515.58749272,0.00054794,120]
[358448896,1745160644853,-500.0,0.00054794,120]
[358448897,1745160644862,-655.03,0.00054794,120]
[358448898,1745160644871,-524.13118442,0.00054794,120]
[358448899,1745160644881,-500.0,0.00054794,120]
[358448900,1745160644891,-500.0,0.00054794,120]
[358448901,1745160644901,-500.0,0.00054794,120]
[358448902,1745160644911,-462.3494684,0.00054794,120]
[358448903,1745160644921,-500.0,0.00054794,120]
[358448904,1745160644931,-557.12,0.00054794,120]
[358448905,1745160644941,-521.95,0.00054794,120]
[358448906,1745160644950,-500.0,0.00054794,120]
[358448907,1745160644960,-500.0,0.00054794,120]
[358448908,1745160644971,-529.85965202,0.00054794,120]
[358448909,1745160644980,-500.0,0.00054794,120]
[358448910,1745160644989,-500.0,0.00054794,120]
[358448911,1745160644999,-532.55754965,0.00054794,120]
[358448912,1745160645009,-500.0,0.00054794,120]
[358448913,1745160645018,-500.0,0.00054794,120]
[358448914,1745160645028,-500.0,0.00054794,120]
[358448915,1745160645037,-295.01608991,0.00054794,120]
[358448916,1745160645047,-500.0,0.00054794,120]
[358448917,1745160645056,-526.67582884,0.00054794,120]
[358448918,1745160645066,-500.0,0.00054794,120]
[358448919,1745160645075,-537.71954097,0.00054794,120]
[358448920,1745160645085,-537.1364434,0.00054794,120]
[358448921,1745160645096,-638.17016724,0.00054794,120]
[358448922,1745160645105,-500.0,0.00054794,120]
[358448923,1745160645115,-549.68,0.00054794,120]
[358448924,1745160645125,-531.73041728,0.00054794,120]
[358448925,1745160645134,-500.0,0.00054794,120]
[358448926,1745160645144,-500.0,0.00054794,120]
[358448927,1745160645153,-519.02126104,0.00054794,120]
[358448928,1745160645162,-552.6549191,0.00054794,120]
[358448929,1745160645171,-527.63142496,0.00054794,120]
[358448930,1745160645181,-603.91284461,0.00054794,120]
[358448931,1745160645190,-513.94093014,0.00054794,120]
[358448932,1745160645200,-549.08266617,0.00054794,120]
[358448933,1745160645209,-547.92630433,0.00054794,120]
[358448934,1745160645219,-500.0,0.00054794,120]
[358448935,1745160645228,-500.0,0.00054794,120]
[358448936,1745160645237,-500.0,0.00054794,120]
[358448937,1745160645247,-496.24960959,0.00054794,120]
[358448938,1745160645256,-500.0,0.00054794,120]
[358448939,1745160645266,-500.0,0.00054794,120]
[358448940,1745160645275,-500.0,0.00054794,120]
[358448941,1745160645285,-500.0,0.00054794,120]
[358448942,1745160645295,-500.0,0.00054794,120]
[358448943,1745160645304,-511.16109964,0.00054794,120]
[358448944,1745160645313,-500.0,0.00054794,120]
[358448945,1745160645323,-500.0,0.00054794,120]
[358448946,1745160645332,-500.0,0.00054794,120]
[358448947,1745160645342,-500.0,0.00054794,120]
[358448948,1745160645351,-531.7597837,0.00054794,120]
[358448949,1745160645361,-500.0,0.00054794,120]
[358448950,1745160645370,-425.14475,0.00054794,120]
[358448951,1745160645380,-500.0,0.00054794,120]
[358448952,1745160645390,-535.35978613,0.00054794,120]
[358448953,1745160645399,-507.96583331,0.00054794,120]
[358448954,1745160645409,-500.0,0.00054794,120]
[358448955,1745160645419,-500.0,0.00054794,120]
[358448957,1745160645428,-500.0,0.00054794,120]
[358448959,1745160645438,-500.0,0.00054794,120]
[358448960,1745160645447,-500.0,0.00054794,120]
[358448962,1745160645456,-500.0,0.00054794,120]
[358448963,1745160645466,-500.0,0.00054794,120]
[358448964,1745160645476,-500.0,0.00054794,120]
[358448965,1745160645485,-500.0,0.00054794,120]
[358448966,1745160645495,-500.0,0.00054794,120]
[358448967,1745160645504,-500.0,0.00054794,120]
[358448968,1745160645514,-500.0,0.00054794,120]
[358448969,1745160645523,-500.0,0.00054794,120]
[358448970,1745160645532,-500.0,0.00054794,120]
[358448971,1745160645542,-512.68984176,0.00054794,120]
[358448972,1745160645551,-1013.50743276,0.00054794,120]
[358448973,1745160645560,-595.64,0.00054794,120]
[358448974,1745160645570,-500.0,0.00054794,120]
[358448975,1745160645579,-557.22164586,0.00054794,120]
[358448976,1745160645588,-500.0,0.00054794,120]
[358448977,1745160645599,-500.0,0.00054794,120]
[358448978,1745160645608,-500.0,0.00054794,120]
[358448979,1745160645617,-547.33202057,0.00054794,120]
[358448980,1745160645627,-535.02277486,0.00054794,120]
[358448981,1745160645636,-300.0,0.00054794,120]
[358448982,1745160645648,-500.0,0.00054794,120]
[358448983,1745160645659,-500.0,0.00054794,120]
[358448984,1745160645669,-545.80777953,0.00054794,120]
[358448985,1745160645678,-500.0,0.00054794,120]
[358448986,1745160645688,-500.0,0.00054794,120]
[358448987,1745160645697,-500.0,0.00054794,120]
[358448988,1745160645706,-500.0,0.00054794,120]
[358448989,1745160645716,-649.29,0.00054794,120]
[358448990,1745160645726,-398.66565568,0.00054794,120]
[358448991,1745160645735,-500.0,0.00054794,120]
[358448992,1745160645745,-500.0,0.00054794,120]
[358448993,1745160645754,-500.0,0.00054794,120]
[358448994,1745160645764,-500.0,0.00054794,120]
[358448995,1745160645773,-505.99,0.00054794,120]
[358448996,1745160645783,-500.0,0.00054794,120]
[358448997,1745160645792,-542.4763551,0.00054794,120]
[358448998,1745160645801,-445.33275072,0.00054794,120]
[358448999,1745160645810,-511.07,0.00054794,120]
[358449000,1745160645819,-515.02237138,0.00054794,120]
[358449001,1745160645829,-500.0,0.00054794,120]
[358449002,1745160645838,-500.0,0.00054794,120]
[358449003,1745160645848,-500.0,0.00054794,120]
[358449004,1745160645858,-500.0,0.00054794,120]
[358449005,1745160645867,-277.00881606,0.00054794,120]
[358449006,1745160645877,-500.0,0.00054794,120]
[358449007,1745160645887,-500.0,0.00054794,120]
[358449008,1745160645897,-500.0,0.00054794,120]
[358449009,1745160645906,-500.0,0.00054794,120]
[358449010,1745160645916,-500.0,0.00054794,120]
[358449011,1745160645925,-500.0,0.00054794,120]
[358449012,1745160645935,-500.0,0.00054794,120]
[358449013,1745160645944,-500.0,0.00054794,120]
[358449014,1745160645953,-500.0,0.00054794,120]
[358449015,1745160645964,-500.0,0.00054794,120]
[358449016,1745160645973,-500.0,0.00054794,120]
[358449017,1745160645982,-500.0,0.00054794,120]
[358449018,1745160645992,-500.0,0.00054794,120]
[358449019,1745160646001,-500.0,0.00054794,120]
[358449020,1745160646010,-522.22617908,0.00054794,120]
[358449021,1745160646021,-486.39669459,0.00054794,120]
[358449022,1745160646031,-526.8964853,0.00054794,120]
[358449023,1745160646040,-1514.07,0.00054794,120]
[358449024,1745160646049,-500.0,0.00054794,120]
[358449025,1745160646059,-500.0,0.00054794,120]
[358449026,1745160646068,-300.0,0.00054794,120]
[358449027,1745160646078,-500.0,0.00054794,120]
[358449028,1745160646087,-500.0,0.00054794,120]
[358449029,1745160646097,-500.0,0.00054794,120]
[358449030,1745160646106,-562.07791152,0.00054794,120]
[358449031,1745160646115,-500.0,0.00054794,120]
[358449032,1745160646125,-500.0,0.00054794,120]
[358449033,1745160646134,-500.0,0.00054794,120]
[358449034,1745160646144,-500.0,0.00054794,120]
[358449035,1745160646153,-500.0,0.00054794,120]
[358449036,1745160646163,-500.0,0.00054794,120]
[358449037,1745160646172,-500.0,0.00054794,10]
[358449039,1745160646181,-500.0,0.00054794,120]
[358449041,1745160646191,-500.0,0.00054794,120]
[358449043,1745160646201,-500.0,0.00054794,120]
[358449045,1745160646210,-546.29982537,0.00054794,120]
[358449047,1745160646220,-500.0,0.00054794,120]
[358449049,1745160646228,-500.0,0.00054794,120]
[358449051,1745160646238,-500.0,0.00054794,120]
[358449053,1745160646247,-500.0,0.00054794,120]
[358449055,1745160646256,-500.0,0.00054794,120]
[358449057,1745160646265,-639.49130704,0.00054794,120]
[358449058,1745160646274,-500.0,0.00054794,120]
[358449059,1745160646284,-500.0,0.00054794,120]
[358449060,1745160646294,-500.0,0.00054794,120]
[358449061,1745160646303,-500.0,0.00054794,120]
[358449062,1745160646312,-500.0,0.00054794,120]
[358449063,1745160646321,-500.0,0.00054794,120]
[358449064,1745160646330,-544.75347657,0.00054794,120]
[358449065,1745160646339,-500.0,0.00054794,120]
[358449066,1745160646349,-500.0,0.00054794,120]
[358449067,1745160646359,-528.10883962,0.00054794,120]
[358449068,1745160646367,-552.05539893,0.00054794,120]
[358449069,1745160646377,-553.85422003,0.00054794,120]
[358449070,1745160646386,-500.0,0.00054794,120]
[358449071,1745160646396,-500.0,0.00054794,120]
[358449072,1745160646405,-526.85250445,0.00054794,120]
[358449073,1745160646414,-500.0,0.00054794,30]
[358449074,1745160646423,-547.85262929,0.00054794,120]
[358449075,1745160646432,-500.0,0.00054794,120]
[358449076,1745160646442,-540.19481612,0.00054794,120]
[358449077,1745160646451,-500.0,0.00054794,120]
[358449078,1745160646460,-500.0,0.00054794,120]
[358449079,1745160646470,-500.0,0.00054794,120]
[358449080,1745160646479,-500.0,0.00054794,120]
[358449081,1745160646491,-500.0,0.00054794,120]
[358449082,1745160646500,-500.0,0.00054794,120]
[358449083,1745160646510,-502.83966125,0.00054794,120]
[358449084,1745160646521,-500.0,0.00054794,120]
[358449085,1745160646530,-550.13012729,0.00054794,120]
[358449086,1745160646539,-541.36073956,0.00054794,120]
[358449087,1745160646548,-500.0,0.00054794,120]
[358449088,1745160646557,-500.0,0.00054794,120]
[358449089,1745160646566,-538.04713436,0.00054794,120]
[358449090,1745160646576,-520.33834246,0.00054794,120]
[358449091,1745160646585,-500.0,0.00054794,120]
[358449092,1745160646594,-536.24293143,0.00054794,120]
[358449093,1745160646604,-500.0,0.00054794,120]
[358449094,1745160646613,-500.0,0.00054794,20]
[358449095,1745160646623,-524.77282734,0.00054794,120]
[358449096,1745160646632,-500.0,0.00054794,120]
[358449097,1745160646641,-500.0,0.00054794,120]
[358449098,1745160646653,-522.31580558,0.00054794,120]
[358449099,1745160646662,-500.0,0.00054794,120]
[358449100,1745160646671,-500.0,0.00054794,120]
[358449101,1745160646680,-500.0,0.00054794,120]
[358449102,1745160646691,-500.0,0.00054794,120]
[358449103,1745160646700,-1222.54,0.00054794,120]
[358449104,1745160646710,-500.0,0.00054794,120]
[358449105,1745160646721,-522.11310577,0.00054794,120]
[358449106,1745160646730,-500.0,0.00054794,120]
[358449107,1745160646740,-500.0,0.00054794,120]
[358449108,1745160646750,-500.0,0.00054794,120]
[358449109,1745160646759,-500.0,0.00054794,120]
[358449110,1745160646769,-520.69889516,0.00054794,120]
[358449111,1745160646778,-500.0,0.00054794,120]
[358449112,1745160646787,-533.99498436,0.00054794,120]
[358449113,1745160646796,-557.47675522,0.00054794,120]
[358449114,1745160646806,-500.0,0.00054794,120]
[358449115,1745160646815,-500.0,0.00054794,120]
[358449116,1745160646825,-417.91503815,0.00054794,120]
[358449117,1745160646835,-545.10746327,0.00054794,120]
[358449118,1745160646844,-183.73785392,0.00054794,120]
[358449119,1745160646854,-500.0,0.00054794,120]
[358449120,1745160646863,-515.16532087,0.00054794,120]
[358449121,1745160646872,-500.0,0.00054794,120]
[358449122,1745160646882,-500.0,0.00054794,120]
[358449123,1745160646891,-500.0,0.00054794,120]
[358449124,1745160646900,-500.0,0.00054794,120]
[358449125,1745160646910,-530.65014755,0.00054794,120]
[358449126,1745160646920,-500.0,0.00054794,120]
[358449127,1745160646929,-533.68368063,0.00054794,120]
[358449128,1745160646939,-500.0,0.00054794,120]
[358449129,1745160646948,-250.0,0.00054794,120]
[358449130,1745160646958,-500.0,0.00054794,120]
[358449131,1745160646967,-400.0,0.00054794,120]
[358449132,1745160646976,-500.0,0.00054794,120]
[358449133,1745160646986,-500.0,0.00054794,120]
[358449134,1745160646995,-577.8157989,0.00054794,120]
[358449135,1745160647004,-500.0,0.00054794,120]
[358449136,1745160647013,-500.0,0.00054794,120]
[358449137,1745160647022,-500.0,0.00054794,120]
[358449138,1745160647032,-500.0,0.00054794,120]
[358449139,1745160647041,-619.89446995,0.00054794,120]
[358449140,1745160647051,-500.0,0.00054794,120]
[358449141,1745160647061,-500.0,0.00054794,120]
[358449142,1745160647071,-500.0,0.00054794,120]
[358449143,1745160647081,-500.0,0.00054794,120]
[358449144,1745160647091,-557.19452856,0.00054794,120]
[358449145,1745160647101,-500.0,0.00054794,120]
[358449146,1745160647110,-500.0,0.00054794,120]
[358449147,1745160647121,-500.0,0.00054794,120]
[358449148,1745160647130,-522.5576863,0.00054794,120]
[358449149,1745160647139,-500.0,0.00054794,120]
[358449150,1745160647149,-500.0,0.00054794,120]
[358449151,1745160647159,-514.77518033,0.00054794,120]
[358449152,1745160647170,-546.16285336,0.00054794,120]
[358449153,1745160647179,-520.8017923,0.00054794,120]
[358449154,1745160647189,-515.83931348,0.00054794,120]
[358449155,1745160647198,-518.0389979,0.00054794,120]
[358449156,1745160647208,-500.0,0.00054794,120]
[358449157,1745160647218,-500.0,0.00054794,120]
[358449158,1745160647228,-507.48629722,0.00054794,120]
[358449159,1745160647238,-521.56316954,0.00054794,120]
[358449160,1745160647248,-662.38,0.00054794,120]
[358449161,1745160647258,-500.0,0.00054794,120]
[358449162,1745160647268,-500.0,0.00054794,120]
[358449163,1745160647277,-515.55034157,0.00054794,120]
[358449164,1745160647286,-500.0,0.00054794,120]
[358449165,1745160647295,-514.71047175,0.00054794,120]
[358449166,1745160647439,-541.82897736,0.00054794,120]
[358449167,1745160647448,-500.0,0.00054794,120]
[358449168,1745160647458,-500.0,0.00054794,120]
[358449169,1745160647467,-1563.51,0.00054794,120]
[358449170,1745160647476,-500.0,0.00054794,120]
[358449171,1745160647486,-500.0,0.00054794,120]
[358449172,1745160647495,-513.62063047,0.00054794,120]
[358449173,1745160647504,-500.0,0.00054794,120]
[358449174,1745160647514,-549.89,0.00054794,120]
[358449175,1745160647524,-500.0,0.00054794,120]
[358449176,1745160647533,-500.0,0.00054794,120]
[358449177,1745160647542,-500.0,0.00054794,120]
[358449178,1745160647551,-576.10123851,0.00054794,120]
[358449179,1745160647560,-500.0,0.00054794,120]
[358449180,1745160647570,-500.0,0.00054794,120]
[358449181,1745160647579,-500.0,0.00054794,120]
[358449182,1745160647588,-500.0,0.00054794,120]
[358449183,1745160647598,-1333.03,0.00054794,120]
[358449184,1745160647607,-500.0,0.00054794,120]
[358449185,1745160647617,-500.0,0.00054794,120]
[358449186,1745160647626,-500.0,0.00054794,120]
[358449187,1745160647635,-500.0,0.00054794,120]
[358449188,1745160647646,-500.0,0.00054794,120]
[358449189,1745160647656,-500.0,0.00054794,120]
[358449190,1745160647665,-500.0,0.00054794,120]
[358449191,1745160647674,-1000.0,0.00054794,35]
[358449192,1745160647683,-500.0,0.00054794,120]
[358449193,1745160647693,-527.66485439,0.00054794,120]
[358449194,1745160647702,-528.96,0.00054794,120]
[358449195,1745160647711,-500.0,0.00054794,120]
[358449196,1745160647720,-500.0,0.00054794,120]
[358449197,1745160647729,-500.0,0.00054794,120]
[358449198,1745160647739,-500.0,0.00054794,120]
[358449199,1745160647749,-500.0,0.00054794,120]
[358449200,1745160647758,-500.0,0.00054794,120]
[358449201,1745160647767,-500.0,0.00054794,120]
[358449202,1745160647776,-531.16283515,0.00054794,120]
[358449203,1745160647786,-491.898348,0.00054794,120]
[358449204,1745160647795,-592.82975096,0.00054794,120]
[358449205,1745160647804,-500.0,0.00054794,120]
[358449206,1745160647813,-519.3441333,0.00054794,120]
[358449207,1745160647822,-491.898348,0.00054794,120]
[358449208,1745160647831,-491.898348,0.00054794,120]
[358449209,1745160647840,-530.59444708,0.00054794,120]
[358449210,1745160647850,-500.0,0.00054794,120]
[358449211,1745160647860,-491.898348,0.00054794,120]
[358449212,1745160647869,-501.4664607,0.00054794,120]
[358449213,1745160647878,-491.898348,0.00054794,120]
[358449214,1745160647888,-491.898348,0.00054794,120]
[358449215,1745160647898,-818.05,0.00054794,120]
[358449216,1745160647907,-500.0,0.00054794,120]
[358449217,1745160647918,-500.0,0.00054794,120]
[358449218,1745160647927,-519.93740162,0.00054794,120]
[358449219,1745160647936,-500.0,0.00054794,120]
[358449220,1745160647945,-527.97534477,0.00054794,120]
[358449221,1745160647954,-500.0,0.00054794,120]
[358449222,1745160647963,-305.00889518,0.00054794,120]
[358449223,1745160647973,-500.0,0.00054794,120]
[358449224,1745160647983,-500.0,0.00054794,120]
[358449225,1745160647992,-511.81803621,0.00054794,120]
[358449226,1745160648001,-500.0,0.00054794,120]
[358449227,1745160648011,-500.0,0.00054794,120]
[358449228,1745160648020,-500.0,0.00054794,120]
[358449229,1745160648030,-500.0,0.00054794,120]
[358449230,1745160648039,-561.37973291,0.00054794,120]
[358449231,1745160648049,-500.0,0.00054794,120]
[358449232,1745160648058,-542.0162036,0.00054794,120]
[358449233,1745160648068,-500.0,0.00054794,120]
[358449234,1745160648077,-568.33532342,0.00054794,120]
[358449235,1745160648086,-500.0,0.00054794,120]
[358449236,1745160648096,-520.53354219,0.00054794,120]
[358449237,1745160648105,-500.0,0.00054794,120]
[358449238,1745160648115,-508.20191684,0.00054794,120]
[358449239,1745160648125,-500.0,0.00054794,120]
[358449240,1745160648135,-500.0,0.00054794,120]
[358449241,1745160648144,-536.65998551,0.00054794,120]
[358449242,1745160648154,-500.0,0.00054794,120]